bitfinex/quotes_BTCUSD_20250115
["timestamp","ask_amount","ask_price","bid_price","bid_amount"]
[1736954346763,0.10548381,99460.0,99450.0,0.0038543]
[1736954346764,0.15,99454.0,99450.0,0.0038543]
[1736954346963,0.10548397,99455.0,99450.0,0.0038543]
[1736954346964,0.3026,99451.0,99450.0,0.0038543]
[1736954347169,0.15,99427.0,99410.0,0.0008548]
[1736954347360,0.15,99425.0,99410.0,0.00135415]
[1736954347588,0.15,99419.0,99410.0,0.00135415]
[1736954347804,0.15,99417.0,99410.0,0.00135415]
[1736954348017,0.208514,99426.0,99410.0,0.00135415]
[1736954348018,0.00736,99426.0,99410.0,0.00135415]
[1736954348224,0.01003617,99420.0,99410.0,0.00135415]
[1736954348391,0.00125745,99423.0,99410.0,0.00135415]
[1736954348817,0.00125745,99423.0,99411.0,0.00440783]
[1736954349063,0.00736,99422.0,99411.0,0.00440783]
[1736954349192,0.0086174,99422.0,99411.0,0.00440783]
[1736954349917,0.45539192,99421.0,99412.0,0.00440783]
[1736954350124,0.00736,99420.0,99412.0,0.00440783]
[1736954350311,0.15,99418.0,99412.0,0.00440783]
[1736954350484,0.201176,99415.0,99412.0,0.00440783]
[1736954350690,0.18818443,99414.0,99412.0,0.00440783]
[1736954350890,0.35118,99413.0,99412.0,0.00440783]
[1736954351225,0.45540692,99413.0,99412.0,0.00440783]
[1736954351679,0.45540692,99413.0,99412.0,0.01845648]
[1736954351888,0.45540692,99413.0,99412.0,0.01145648]
[1736954352469,0.26462838,99413.0,99412.0,0.01145648]
[1736954352669,0.00736,99418.0,99412.0,0.01345648]
[1736954352868,0.201144,99431.0,99412.0,0.01345648]
[1736954353103,0.00125725,99430.0,99428.0,1.5]
[1736954353316,0.00125725,99430.0,99412.0,0.01240783]
[1736954353317,0.001,99413.0,99412.0,0.01240783]
[1736954353857,0.20241939,99423.0,99412.0,1.50440783]
[1736954354034,0.001,99418.0,99412.0,1.51340783]
[1736954354477,0.15,99426.0,99412.0,1.70558983]
[1736954354694,0.00996659,99438.0,99412.0,0.01340783]
[1736954354896,0.001,99413.0,99412.0,0.01540783]
[1736954355074,0.15,99429.0,99413.0,0.00440783]
[1736954355280,0.15,99427.0,99413.0,0.00440783]
[1736954355558,0.201173,99417.0,99413.0,0.00440783]
[1736954355799,0.15,99414.0,99413.0,0.00440783]
[1736954356005,0.33818455,99414.0,99413.0,0.00440783]
[1736954356242,0.33692692,99414.0,99413.0,0.00440783]
[1736954356501,0.33692692,99414.0,99413.0,0.00740783]
[1736954356743,0.33692692,99414.0,99413.0,0.003]
[1736954357224,0.33792692,99414.0,99413.0,0.012]
[1736954357434,0.33692692,99414.0,99413.0,0.003]
[1736954357642,0.33692692,99414.0,99413.0,0.005]
[1736954357822,0.33692692,99414.0,99410.0,0.00135415]
[1736954358091,0.15,99412.0,99410.0,0.00135415]
[1736954358307,0.4566686,99411.0,99410.0,0.00135415]
[1736954358524,0.45541092,99411.0,99410.0,0.00135415]
[1736954358756,0.78263784,99411.0,99410.0,0.00135415]
[1736954359020,0.1,99409.0,99380.0,0.01143649]
[1736954359236,0.351245,99381.0,99380.0,0.01158653]
[1736954359444,0.45547192,99381.0,99380.0,0.01158653]
[1736954360089,0.45547192,99381.0,99380.0,0.00455787]
[1736954361172,0.45547192,99381.0,99380.0,0.00655787]
[1736954361568,0.46283192,99381.0,99380.0,0.00655787]
[1736954361722,0.45547192,99381.0,99380.0,0.00655787]
[1736954361928,0.47304965,99381.0,99380.0,0.00015004]
[1736954362132,0.47304965,99381.0,99380.0,0.00300454]
[1736954362924,0.55448689,99381.0,99380.0,0.00300454]
[1736954363137,0.47304965,99381.0,99380.0,0.00300454]
[1736954363556,0.47304965,99381.0,99380.0,0.00100454]
[1736954363762,0.47304965,99381.0,99380.0,0.00300454]
[1736954363944,0.15,99380.0,99372.0,0.00440783]
[1736954364080,0.351261,99373.0,99372.0,0.00455762]
[1736954364315,0.45548792,99373.0,99372.0,0.00014979]
[1736954364522,0.47848792,99373.0,99372.0,0.00014979]
[1736954365454,0.201249,99379.0,99372.0,0.00014979]
[1736954365675,0.10422692,99378.0,99372.0,0.00014979]
[1736954365888,0.00125795,99377.0,99372.0,0.00014979]
[1736954366092,0.30548192,99376.0,99372.0,0.00014979]
[1736954366321,0.201259,99374.0,99372.0,0.00014979]
[1736954366522,0.10748492,99373.0,99372.0,0.00014979]
[1736954366719,0.26284492,99373.0,99372.0,0.00014979]
[1736954366915,0.26158692,99373.0,99372.0,0.00014979]
[1736954367166,0.26158692,99373.0,99372.0,0.00414979]
[1736954367357,0.01036,99381.0,99372.0,0.00014979]
[1736954367510,0.00736,99381.0,99372.0,0.00014979]
[1736954367723,0.00736,99381.0,99372.0,0.00414979]
[1736954367724,0.002,99373.0,99372.0,0.00414979]
[1736954367928,0.002,99373.0,99372.0,0.00014979]
[1736954368330,0.00125797,99375.0,99372.0,0.00314979]
[1736954368555,0.10422692,99374.0,99372.0,0.00314979]
[1736954368760,0.10422692,99374.0,99372.0,0.00414979]
[1736954368761,0.10548493,99374.0,99372.0,0.00414979]
[1736954369203,0.10548493,99374.0,99372.0,0.00314979]
[1736954369389,0.10548493,99374.0,99372.0,0.00414979]
[1736954369595,0.001258,99375.0,99372.0,0.00114979]
[1736954369818,0.00736,99381.0,99372.0,0.00114979]
[1736954369975,0.001,99373.0,99372.0,0.00914979]
[1736954370175,0.001,99373.0,99372.0,0.00114979]
[1736954370634,0.001,99373.0,99372.0,0.01155762]
[1736954370809,0.10422692,99373.0,99372.0,0.00455762]
[1736954371012,0.56244602,99373.0,99372.0,0.00455762]
[1736954371260,0.57246448,99373.0,99372.0,0.01255762]
[1736954371466,0.57246448,99373.0,99372.0,0.01355762]
[1736954371606,0.54946448,99373.0,99372.0,0.01355762]
[1736954371809,0.46676448,99373.0,99372.0,0.00814979]
[1736954371994,0.47412448,99373.0,99372.0,0.00814979]
[1736954372200,0.47412448,99373.0,99372.0,0.00914979]
[1736954372862,0.47312448,99373.0,99372.0,0.00114979]
[1736954373094,0.47312448,99373.0,99372.0,0.00714979]
[1736954373317,0.47312448,99373.0,99372.0,0.00014979]
[1736954373535,0.11450348,99373.0,99372.0,0.01151628]
[1736954373760,0.12186348,99373.0,99372.0,0.01151628]
[1736954373981,0.00736,99373.0,99372.0,0.01151628]
[1736954374197,0.00736,99379.0,99372.0,0.01151628]
[1736954374887,0.00861793,99381.0,99372.0,0.01151628]
[1736954375101,0.11284485,99381.0,99373.0,0.00440783]
[1736954375313,0.00125793,99380.0,99373.0,0.00440783]
[1736954375529,0.11412508,99381.0,99373.0,0.00440783]
[1736954375743,0.00736,99383.0,99373.0,0.00440783]
[1736954375949,0.00736,99391.0,99374.0,0.201259]
[1736954376176,0.201189,99409.0,99379.0,0.201248]
[1736954376177,0.00736,99393.0,99379.0,0.201248]
[1736954376389,0.00736,99393.0,99373.0,0.00940783]
[1736954376390,0.10548469,99392.0,99373.0,0.00940783]
[1736954376617,0.201229,99389.0,99373.0,0.00940783]
[1736954376876,0.201233,99387.0,99380.0,0.00440783]
[1736954377089,0.001,99383.0,99380.0,0.00440783]
[1736954377301,0.10548483,99382.0,99380.0,0.00440783]
[1736954377526,0.00125791,99382.0,99380.0,0.00440783]
[1736954377740,0.001,99383.0,99380.0,0.00440783]
[1736954377951,0.10522692,99383.0,99380.0,0.00440783]
[1736954378313,0.001,99383.0,99380.0,0.00440783]
[1736954378547,0.001,99383.0,99381.0,0.00440783]
[1736954379003,0.10422692,99383.0,99381.0,0.00440783]
[1736954379300,0.0012579,99382.0,99381.0,0.00440783]
[1736954379516,0.25548489,99382.0,99381.0,0.00440783]
[1736954379682,0.25422692,99382.0,99381.0,0.00440783]
[1736954379884,0.29987291,99382.0,99381.0,0.01240783]
[1736954380104,0.29987291,99382.0,99381.0,0.00440783]
[1736954380105,0.50712692,99382.0,99381.0,0.00440783]
[1736954380280,0.15,99372.0,99370.0,0.0017955]
[1736954380485,0.301262,99373.0,99370.0,0.00188076]
[1736954380486,0.57975019,99371.0,99370.0,0.00188076]
[1736954380714,0.57849192,99371.0,99370.0,0.00188076]
[1736954381552,0.57849192,99371.0,99370.0,0.00878912]
[1736954382187,0.57849192,99371.0,99370.0,0.01178912]
[1736954382589,0.48867468,99371.0,99370.0,0.00188076]
[1736954382803,0.49367468,99371.0,99370.0,0.00188076]
[1736954383461,0.59367468,99371.0,99370.0,0.00188076]
[1736954383921,0.49367468,99371.0,99370.0,0.00188076]
[1736954384136,0.46867468,99371.0,99370.0,0.00188076]
[1736954384358,0.47603468,99371.0,99370.0,0.00188076]
[1736954384586,0.47803468,99371.0,99370.0,0.00188076]
[1736954385441,0.47603468,99371.0,99370.0,0.00188076]
[1736954385659,0.47503468,99371.0,99370.0,0.00188076]
[1736954386081,0.47603468,99371.0,99370.0,0.00188076]
[1736954386298,0.49903468,99371.0,99370.0,0.00188076]
[1736954386435,0.49603468,99371.0,99370.0,0.00188076]
[1736954386658,0.49803468,99371.0,99370.0,0.00188076]
[1736954387213,0.49603468,99371.0,99370.0,0.00188076]
[1736954387435,0.11940968,99371.0,99370.0,0.00188076]
[1736954387657,0.01518276,99371.0,99370.0,0.00188076]
[1736954387843,0.01236,99371.0,99370.0,0.00188076]
[1736954388044,0.01036,99371.0,99370.0,0.00188076]
[1736954388272,0.01236,99371.0,99370.0,0.00188076]
[1736954388488,0.117845,99371.0,99370.0,0.00188076]
[1736954388692,0.135845,99371.0,99370.0,0.00188076]
[1736954389058,0.138845,99371.0,99370.0,0.00288076]
[1736954389221,0.135845,99371.0,99370.0,0.00288076]
[1736954389606,0.112845,99371.0,99370.0,0.00288076]
[1736954389808,0.11284517,99371.0,99370.0,0.00788076]
[1736954390012,0.1128451,99371.0,99370.0,0.00788076]
[1736954390188,0.00736,99371.0,99370.0,0.00288076]
[1736954390420,0.00736,99371.0,99370.0,0.00188076]
[1736954390421,0.00861805,99371.0,99370.0,0.00188076]
[1736954390601,0.00861805,99371.0,99370.0,0.00588076]
[1736954390602,0.11284497,99371.0,99370.0,0.00588076]
[1736954390807,0.11284497,99371.0,99370.0,0.00688076]
[1736954392697,0.11284504,99371.0,99370.0,0.00688076]
[1736954393072,0.26158692,99371.0,99370.0,0.00688076]
[1736954393318,0.37215286,99371.0,99370.0,0.00688076]
[1736954393490,0.28458692,99371.0,99370.0,0.00688076]
[1736954394314,0.27722692,99371.0,99370.0,0.00688076]
[1736954394465,0.28458692,99371.0,99370.0,0.00688076]
[1736954395297,0.201294,99357.0,99356.0,0.0008557]
[1736954395501,0.30677939,99357.0,99356.0,0.0008557]
[1736954395702,0.10422692,99357.0,99356.0,0.0008557]
[1736954395948,0.10548525,99357.0,99356.0,0.0008557]
[1736954396317,0.10548525,99357.0,99356.0,0.00520366]
[1736954396513,0.11284525,99357.0,99356.0,0.00520366]
[1736954396903,0.12311812,99357.0,99356.0,0.00520366]
[1736954397108,0.12311812,99357.0,99356.0,0.00920366]
[1736954397309,0.11449979,99357.0,99356.0,0.00920366]
[1736954397644,0.12185979,99357.0,99356.0,0.00520366]
[1736954397847,0.12185979,99357.0,99356.0,0.0028557]
[1736954398233,0.12311809,99357.0,99356.0,0.0028557]
[1736954399041,0.12311809,99357.0,99356.0,0.0008557]
[1736954399348,0.12311809,99357.0,99356.0,0.0018557]
[1736954400330,0.12185979,99357.0,99356.0,0.0018557]
[1736954400541,0.00736,99357.0,99356.0,0.0018557]
[1736954400776,0.00140784,99371.0,99357.0,0.201294]
[1736954400986,0.11158692,99370.0,99356.0,0.0018557]
[1736954401189,0.27848506,99369.0,99356.0,0.0018557]
[1736954401387,0.00736,99368.0,99356.0,0.0018557]
[1736954401632,0.3067592,99367.0,99356.0,0.0018557]
[1736954401963,0.15,99366.0,99356.0,0.0018557]
[1736954402185,0.173,99358.0,99356.0,0.0008557]
[1736954402390,0.45552092,99357.0,99356.0,0.0008557]
[1736954402593,0.11158692,99357.0,99356.0,0.0008557]
[1736954402788,0.10548523,99357.0,99356.0,0.0008557]
[1736954402992,0.11284523,99357.0,99356.0,0.0018557]
[1736954403251,0.11284531,99357.0,99356.0,0.0018557]
[1736954403481,0.28584531,99357.0,99356.0,0.0008557]
[1736954403668,0.28458692,99357.0,99356.0,0.0018557]
[1736954404086,0.26158692,99357.0,99356.0,0.0008557]
[1736954404291,0.26258692,99357.0,99356.0,0.0008557]
[1736954404492,0.27282073,99357.0,99356.0,0.0008557]
[1736954404695,0.27182073,99357.0,99356.0,0.0008557]
[1736954404905,0.27282073,99357.0,99356.0,0.0008557]
[1736954405965,0.27282073,99357.0,99356.0,0.0018557]
[1736954406427,0.27282073,99357.0,99356.0,0.0008557]
[1736954406629,0.27282073,99357.0,99356.0,0.0018557]
[1736954407028,0.37432073,99357.0,99356.0,0.0018557]
[1736954407725,0.29582073,99357.0,99356.0,0.0018557]
[1736954407864,0.26546073,99357.0,99356.0,0.0018557]
[1736954408210,0.27282073,99357.0,99356.0,0.0018557]
[1736954408419,0.29582073,99357.0,99356.0,0.0018557]
[1736954409396,0.39582073,99357.0,99356.0,0.0018557]
[1736954409600,0.29582073,99357.0,99356.0,0.0018557]
[1736954410314,0.41621346,99357.0,99356.0,0.0018557]
[1736954410737,0.41621346,99357.0,99351.0,0.00179487]
[1736954410738,0.15,99352.0,99351.0,0.00179487]
[1736954410905,0.27848551,99352.0,99351.0,0.00179487]
[1736954411148,0.27722692,99352.0,99351.0,0.00179487]
[1736954411369,0.1,99347.0,99344.0,0.0008561]
[1736954411581,0.023,99336.0,99312.0,0.000855]
[1736954411816,0.32857092,99332.0,99312.0,0.000855]
[1736954412219,0.47857092,99332.0,99312.0,0.000855]
[1736954412625,0.1,99330.0,99312.0,0.000855]
[1736954412914,0.32860992,99313.0,99312.0,0.000855]
[1736954413835,0.47860992,99313.0,99312.0,0.000855]
[1736954414047,0.47860992,99313.0,99312.0,0.00519961]
[1736954414250,0.57420509,99313.0,99312.0,0.00919961]
[1736954414452,0.48883356,99313.0,99312.0,0.00919961]
[1736954415080,0.49083356,99313.0,99312.0,0.00919961]
[1736954415503,0.49083356,99313.0,99312.0,0.00519961]
[1736954415698,0.48883356,99313.0,99312.0,0.00519961]
[1736954415899,0.49483356,99313.0,99312.0,0.00519961]
[1736954416112,0.49483356,99313.0,99267.0,0.201475]
[1736954416113,0.805556,99310.0,99267.0,0.201475]
[1736954416319,0.15,99294.0,99267.0,0.201475]
[1736954416475,0.173,99283.0,99266.0,7e-05]
[1736954416681,0.37722692,99281.0,99266.0,7e-05]
[1736954416885,0.27722692,99281.0,99266.0,7e-05]
[1736954417103,0.30649377,99281.0,99266.0,7e-05]
[1736954417310,0.40649377,99281.0,99266.0,7e-05]
[1736954417516,0.374468,99271.0,99266.0,7e-05]
[1736954417715,0.50796177,99271.0,99270.0,0.0004558]
[1736954418135,0.47869492,99271.0,99270.0,0.0004558]
[1736954418331,0.51532177,99271.0,99270.0,0.0004558]
[1736954418778,0.28458692,99271.0,99270.0,0.0004558]
[1736954418977,0.28745566,99271.0,99270.0,0.0004558]
[1736954419217,0.13745566,99271.0,99270.0,0.0004558]
[1736954419423,0.002,99271.0,99270.0,0.0004558]
[1736954419632,0.00936,99271.0,99270.0,0.0004558]
[1736954419870,0.002,99271.0,99270.0,0.0004558]
[1736954420075,0.006,99271.0,99270.0,0.0004558]
[1736954420500,0.006,99271.0,99270.0,0.0014558]
[1736954420705,0.004,99271.0,99270.0,0.1671038]
[1736954420909,0.00014945,99281.0,99280.0,0.20145]
[1736954421758,0.00014945,99281.0,99270.0,1.5004558]
[1736954421966,0.10422692,99280.0,99270.0,1.5004558]
[1736954422176,0.02425923,99279.0,99270.0,0.0004558]
[1736954422380,0.007,99271.0,99270.0,0.0014558]
[1736954422793,0.007,99271.0,99270.0,0.0034558]
[1736954423213,0.007,99271.0,99270.0,0.0014558]
[1736954423418,0.007,99271.0,99270.0,0.0024558]
[1736954423620,0.007,99271.0,99270.0,1.5024558]
[1736954423820,0.007,99271.0,99270.0,1.5014558]
[1736954424027,0.007,99271.0,99270.0,1.5054558]
[1736954424237,0.007,99271.0,99270.0,2.3720608]
[1736954424436,0.00014945,99281.0,99270.0,1.5004558]
[1736954424643,0.001,99280.0,99270.0,1.5004558]
[1736954424858,0.001,99271.0,99270.0,1.7069258]
[1736954425056,0.001,99271.0,99270.0,1.81115272]
[1736954425270,0.001,99271.0,99270.0,2.03735272]
[1736954425485,0.001,99271.0,99270.0,2.33196772]
[1736954425688,0.001,99271.0,99270.0,2.04235272]
[1736954425892,0.001,99271.0,99270.0,1.93735272]
[1736954426099,0.00014945,99281.0,99280.0,0.20145]
[1736954427661,0.00114945,99281.0,99280.0,0.21045]
[1736954428298,0.00114945,99281.0,99280.0,0.21345]
[1736954428510,0.00114945,99281.0,99280.0,0.31767692]
[1736954428684,0.00114945,99281.0,99280.0,0.97793392]
[1736954428927,0.00114945,99281.0,99280.0,2.82168192]
[1736954429149,0.00125879,99325.0,99309.0,0.20139]
[1736954429375,0.10422692,99324.0,99290.0,0.35]
[1736954429581,0.10422692,99324.0,99293.0,0.201424]
[1736954429797,0.00736,99324.0,99321.0,0.201366]
[1736954430024,0.00736,99324.0,99298.0,0.1]
[1736954430025,0.00736,99324.0,99301.0,1.01603701]
[1736954430242,0.00736,99324.0,99314.0,0.20138]
[1736954430417,0.00125855,99323.0,99309.0,0.20139]
[1736954430828,0.11158692,99322.0,99306.0,0.201396]
[1736954431044,0.00861872,99321.0,99306.0,0.201396]
[1736954431267,0.023,99319.0,99296.0,0.201417]
[1736954431469,0.10548571,99318.0,99291.0,0.201428]
[1736954431693,0.10548571,99318.0,99289.0,0.0794]
[1736954431809,0.10548571,99318.0,99302.0,0.201405]
[1736954432243,0.18036,99317.0,99303.0,0.00506228]
[1736954432449,0.173,99315.0,99314.0,0.003]
[1736954432656,0.47860592,99315.0,99292.0,0.201426]
[1736954432859,0.201388,99311.0,99292.0,0.201426]
[1736954433090,0.201397,99307.0,99302.0,0.001]
[1736954433294,0.201397,99307.0,99276.0,0.201457]
[1736954433295,0.201425,99293.0,99276.0,0.201457]
[1736954433503,0.10422692,99306.0,99263.0,0.1262]
[1736954433504,0.201446,99282.0,99263.0,0.0794]
[1736954433705,0.11284608,99281.0,99263.0,0.0794]
[1736954433946,0.11284608,99281.0,99263.0,0.201483]
[1736954434155,0.20145,99280.0,99259.0,0.201492]
[1736954434370,0.30693819,99279.0,99263.0,0.201483]
[1736954434569,0.023,99274.0,99270.0,0.00095416]
[1736954434790,0.10548631,99273.0,99270.0,0.00195416]
[1736954434995,0.1752861,99300.0,99271.0,0.00432062]
[1736954435248,0.15,99297.0,99271.0,0.00432062]
[1736954435453,0.15,99289.0,99272.0,0.201466]
[1736954435671,0.001,99279.0,99271.0,0.00432062]
[1736954435909,0.001,99279.0,99276.0,0.201457]
[1736954436490,0.001,99279.0,99276.0,0.402915]
[1736954437291,0.001,99279.0,99276.0,0.407915]
[1736954437493,0.001,99279.0,99276.0,0.201457]
[1736954437692,0.00125902,99292.0,99270.0,0.00095416]
[1736954437915,0.00125902,99292.0,99271.0,0.201467]
[1736954437916,0.10422692,99291.0,99271.0,0.201467]
[1736954438121,0.0012591,99290.0,99270.0,0.00095416]
[1736954438283,0.10422692,99289.0,99270.0,0.00095416]
[1736954438487,0.00125914,99288.0,99270.0,0.00095416]
[1736954438693,0.023,99286.0,99271.0,0.0008555]
[1736954438895,0.201455,99278.0,99276.0,0.008]
[1736954439100,0.201458,99276.0,99271.0,0.0008555]
[1736954439319,0.10548624,99275.0,99271.0,0.0008555]
[1736954439522,0.402925,99274.0,99271.0,0.0008555]
[1736954439786,0.201466,99272.0,99271.0,0.0008555]
[1736954439924,0.47995234,99272.0,99271.0,0.0008555]
[1736954440204,0.47869292,99272.0,99271.0,0.0008555]
[1736954440661,0.48862864,99272.0,99271.0,0.00518458]
[1736954442085,0.26416264,99272.0,99271.0,0.00518458]
[1736954442289,0.001,99272.0,99271.0,0.00518458]
[1736954442565,0.002,99272.0,99271.0,0.01452158]
[1736954442710,0.001,99272.0,99271.0,1.50518458]
[1736954442911,0.001,99272.0,99271.0,1.5101762]
[1736954443116,0.003,99272.0,99271.0,1.50584712]
[1736954443869,0.002,99272.0,99271.0,1.50584712]
[1736954444116,0.001,99272.0,99271.0,1.61007404]
[1736954444348,0.01008959,99307.0,99306.0,0.201397]
[1736954444561,0.1752861,99340.0,99273.0,0.1]
[1736954444562,0.00305531,99319.0,99300.0,0.201408]
[1736954444772,0.201383,99314.0,99306.0,0.00492599]
[1736954444980,0.10548573,99313.0,99292.0,1.5]
[1736954445198,0.023,99312.0,99279.0,0.0475]
[1736954445406,0.023,99310.0,99293.0,0.00493106]
[1736954445617,0.023,99303.0,99293.0,0.00493106]
[1736954445820,0.1982861,99310.0,99277.0,0.201455]
[1736954445821,0.201427,99292.0,99277.0,0.201455]
[1736954446029,0.30689201,99302.0,99271.0,0.0008555]
[1736954446030,0.15,99290.0,99271.0,0.0008555]
[1736954446235,0.201452,99279.0,99271.0,0.0008555]
[1736954446480,0.3252861,99290.0,99271.0,0.0008555]
[1736954446481,0.10548609,99278.0,99271.0,0.0008555]
[1736954446688,0.201464,99274.0,99271.0,0.0008555]
[1736954446906,0.10548625,99273.0,99271.0,0.0008555]
[1736954447113,0.30569192,99273.0,99271.0,0.0008555]
[1736954447318,0.00125931,99272.0,99271.0,0.0008555]
[1736954447523,0.10422692,99272.0,99271.0,0.00135386]
[1736954447933,0.10422692,99272.0,99271.0,0.00335386]
[1736954448140,0.201447,99282.0,99271.0,0.00335386]
[1736954448368,0.10548612,99281.0,99271.0,0.00135386]
[1736954448577,0.201451,99280.0,99271.0,0.00135386]
[1736954448780,0.201459,99276.0,99271.0,0.00335386]
[1736954449005,4e-05,99272.0,99271.0,0.00935386]
[1736954449210,4e-05,99272.0,99271.0,0.00135386]
[1736954449418,4e-05,99272.0,99271.0,0.00335386]
[1736954449627,4e-05,99272.0,99271.0,0.00435386]
[1736954449832,0.10552618,99272.0,99271.0,0.00235386]
[1736954450038,0.10552618,99272.0,99271.0,0.00635386]
[1736954450275,0.12852618,99272.0,99271.0,0.00635386]
[1736954450477,0.12852618,99272.0,99271.0,0.00235386]
[1736954450478,0.10426692,99272.0,99271.0,0.00235386]
[1736954450651,0.10552633,99272.0,99271.0,0.00668469]
[1736954451067,0.10556633,99272.0,99271.0,0.00668469]
[1736954451263,0.10556633,99272.0,99271.0,0.00568469]
[1736954451264,0.10430692,99272.0,99271.0,0.00568469]
[1736954451465,0.00012,99272.0,99271.0,0.00568469]
[1736954451669,0.00016,99272.0,99271.0,0.01680194]
[1736954451869,0.00016,99272.0,99271.0,0.00768469]
[1736954452112,0.0002,99272.0,99271.0,0.01647111]
[1736954452321,0.0002,99272.0,99271.0,0.00135386]
[1736954452529,7.188e-05,99272.0,99271.0,1.58797111]
[1736954452751,7.188e-05,99272.0,99271.0,1.58385386]
[1736954452979,7.188e-05,99272.0,99271.0,1.51147111]
[1736954453184,7.188e-05,99272.0,99271.0,0.01747111]
[1736954453607,7.188e-05,99272.0,99271.0,1.51147111]
[1736954453820,7.188e-05,99272.0,99271.0,0.01647111]
[1736954454247,7.188e-05,99272.0,99271.0,0.01847111]
[1736954454451,7.188e-05,99272.0,99271.0,0.00935386]
[1736954454652,7.188e-05,99272.0,99271.0,0.00735386]
[1736954454857,0.20153788,99272.0,99271.0,0.00735386]
[1736954455060,7.188e-05,99272.0,99271.0,0.00768252]
[1736954455263,0.01023166,99272.0,99271.0,0.01368252]
[1736954455467,7.188e-05,99272.0,99271.0,0.01801304]
[1736954455874,7.188e-05,99272.0,99271.0,0.02001304]
[1736954456024,7.188e-05,99272.0,99271.0,0.01401304]
[1736954456431,7.188e-05,99272.0,99271.0,0.02001304]
[1736954456633,7.188e-05,99272.0,99271.0,0.09651304]
[1736954457010,7.188e-05,99272.0,99271.0,1.21677697]
[1736954457642,7.188e-05,99272.0,99271.0,1.21244831]
[1736954457843,7.188e-05,99272.0,99271.0,1.21044831]
[1736954458095,7.188e-05,99272.0,99271.0,1.21244831]
[1736954458278,7.188e-05,99272.0,99271.0,1.20644831]
[1736954458464,7.188e-05,99272.0,99271.0,1.20444831]
[1736954458666,7.188e-05,99272.0,99271.0,1.20944831]
[1736954458887,7.188e-05,99272.0,99271.0,1.20444831]
[1736954459253,7.188e-05,99272.0,99271.0,1.31344831]
[1736954459471,7.188e-05,99272.0,99271.0,1.11322139]
[1736954459668,8.8e-07,99272.0,99271.0,2.31124731]
[1736954459876,4e-05,99300.0,99299.0,0.277911]
[1736954460294,4e-05,99300.0,99299.0,0.53423577]
[1736954460730,4e-05,99300.0,99299.0,0.28423577]
[1736954461245,4e-05,99300.0,99299.0,0.00632477]
[1736954461604,4e-05,99300.0,99291.0,0.201428]
[1736954461809,4e-05,99300.0,99292.0,0.00650523]
[1736954462079,4e-05,99300.0,99299.0,0.003]
[1736954462393,4e-05,99300.0,99299.0,0.012]
[1736954462524,4e-05,99300.0,99299.0,0.00650486]
[1736954462961,4e-05,99300.0,99299.0,0.59771578]
[1736954463158,4e-05,99300.0,99299.0,0.95670692]
[1736954463363,0.00183718,99300.0,99299.0,2.04940364]
[1736954463542,0.00183718,99300.0,99299.0,1.87139564]
[1736954463939,0.00183718,99300.0,99299.0,1.77139564]
[1736954464149,0.00183718,99300.0,99299.0,1.66716872]
[1736954464355,0.00183718,99300.0,99299.0,0.16716872]
[1736954464554,0.00183718,99300.0,99299.0,0.00650372]
[1736954464733,0.00183718,99300.0,99299.0,0.01550372]
[1736954464935,0.00183718,99300.0,99299.0,0.004]
[1736954465138,0.00183718,99300.0,99297.0,0.402829]
[1736954465366,0.00183718,99300.0,99299.0,0.210411]
[1736954465566,0.00183718,99300.0,99298.0,0.11103818]
[1736954465567,0.00183718,99300.0,99298.0,0.00681126]
[1736954465767,0.00183718,99300.0,99299.0,0.00781047]
[1736954465974,0.00183718,99300.0,99299.0,0.01481047]
[1736954466264,0.00183718,99300.0,99299.0,0.00781047]
[1736954466464,0.00183718,99300.0,99299.0,0.20922147]
[1736954467010,0.00183718,99300.0,99299.0,0.20822147]
[1736954467636,0.00183718,99300.0,99299.0,0.21722147]
[1736954467838,0.00183718,99300.0,99299.0,0.22122147]
[1736954468050,0.00183718,99300.0,99299.0,0.21222147]
[1736954468259,0.00183718,99300.0,99299.0,0.21722147]
[1736954468474,0.00183718,99300.0,99299.0,0.21322147]
[1736954468666,0.00183718,99300.0,99299.0,0.21622147]
[1736954468849,0.00183718,99300.0,99299.0,0.21122147]
[1736954469259,0.00183718,99300.0,99299.0,1.01731939]
[1736954469456,1.8e-07,99300.0,99299.0,1.55613639]
[1736954469665,1.8e-07,99300.0,99299.0,0.79634839]
[1736954469869,1.8e-07,99300.0,99299.0,0.82488946]
[1736954470325,1.8e-07,99300.0,99299.0,0.85484445]
[1736954470549,0.00179655,99319.0,99318.0,0.626973]
[1736954470773,0.004032,99379.0,99361.0,0.201285]
[1736954470774,0.01034659,99366.0,99361.0,0.201285]
[1736954471005,0.00179571,99380.0,99362.0,1.5]
[1736954471181,0.00179571,99380.0,99367.0,0.201273]
[1736954471333,0.00179571,99380.0,99367.0,0.402547]
[1736954471535,0.00179571,99380.0,99369.0,0.20127]
[1736954471784,0.00194568,99370.0,99369.0,1.32153393]
[1736954471991,0.00194568,99370.0,99369.0,1.32828235]
[1736954472341,0.00179571,99380.0,99377.0,0.551253]
[1736954472483,0.00179571,99380.0,99377.0,0.65547992]
[1736954472683,0.00179698,99400.0,99399.0,0.201209]
[1736954472895,0.00179698,99400.0,99399.0,1.701209]
[1736954473098,0.00194699,99400.0,99399.0,1.70770419]
[1736954474672,0.00194699,99400.0,99399.0,1.71070419]
[1736954475110,0.00194699,99400.0,99399.0,1.70770419]
[1736954475330,0.00194699,99400.0,99399.0,1.71570419]
[1736954475542,0.00194699,99400.0,99399.0,0.21070419]
[1736954475948,0.00194699,99400.0,99399.0,0.21870419]
[1736954476150,0.00194699,99400.0,99399.0,0.21070419]
[1736954476479,0.00194699,99400.0,99399.0,0.21870419]
[1736954476689,0.00194699,99400.0,99399.0,0.21570419]
[1736954476890,0.00194699,99400.0,99399.0,0.21770419]
[1736954477290,0.00194699,99400.0,99399.0,0.21570419]
[1736954477675,0.00194699,99400.0,99399.0,0.20970419]
[1736954478121,0.00194699,99400.0,99399.0,0.21570419]
[1736954478339,0.00194699,99400.0,99399.0,0.20770419]
[1736954478541,0.00194699,99400.0,99399.0,0.67293111]
[1736954478747,0.00194699,99400.0,99399.0,1.68896812]
[1736954478943,0.00194699,99400.0,99399.0,2.25261012]
[1736954479164,0.00194699,99400.0,99399.0,2.11509812]
[1736954479368,0.00194699,99400.0,99399.0,1.48096812]
[1736954479588,0.00194699,99400.0,99399.0,1.58096812]
[1736954479810,0.00194699,99400.0,99399.0,1.2237412]
[1736954479988,0.00194699,99400.0,99399.0,0.20770419]
[1736954480206,0.00194699,99400.0,99399.0,0.21070419]
[1736954480587,0.00194699,99400.0,99399.0,0.20770419]
[1736954480993,0.00194699,99400.0,99399.0,0.21170419]
[1736954481536,0.00194699,99400.0,99399.0,0.21670419]
[1736954481738,0.00194699,99400.0,99399.0,0.20770419]